fUSD/lending_fUSD_20250926
["ID","MTS","AMOUNT","RATE_DAILY","PERIOD"]
[387804503,1758883832082,-150.0,0.000189,2]
[387804504,1758883832091,-300.0,0.00018917,2]
[387804505,1758883832100,-1200.0,0.00018917,2]
[387804506,1758883832109,-1853.00680655,0.00018918,2]
[387804507,1758883832120,-370.0,0.00018918,2]
[387804508,1758883832207,-334.78694722,0.00018918,2]
[387804510,1758883832219,-15647.66428469,0.00018918,2]
[387804512,1758883832228,-209.40437684,0.00018972,2]
[387804514,1758883832238,-277.35679052,0.00018972,2]
[387804516,1758883832247,-152.385611,0.00019,2]
[387804518,1758883832257,-250.0,0.00019003,2]
[387804520,1758883832266,-150.0,0.00019019,2]
[387804522,1758883832276,-158.56,0.00019045,2]
[387804523,1758883832285,-500.0,0.0001913,2]
[387804524,1758883832295,-500.0,0.0001913,2]
[387804525,1758883832304,-500.0,0.0001913,2]
[387804526,1758883832314,-500.0,0.0001913,2]
[387804527,1758883832323,-500.0,0.0001913,2]
[387804528,1758883832333,-500.0,0.0001913,2]
[387804529,1758883832342,-500.0,0.0001913,2]
[387804530,1758883832352,-322.6107,0.0001913,2]
[387804531,1758883832361,-351.7633038,0.00019185,2]
[387804532,1758883832370,-174.54,0.0001954,2]
[387804533,1758883832380,-157.91,0.00019575,2]
[387804534,1758883832389,-334.71516,0.000198,2]
[387804535,1758883832399,-1567.58007209,0.00019842,2]
[387804537,1758883832409,-282.90622871,0.00019843,2]
[387804538,1758883832418,-492.06155714,0.00019843,2]
[387804539,1758883832427,-1567.58007209,0.00019846,2]
[387804540,1758883832437,-492.06155714,0.00019848,2]
[387804541,1758883832446,-5090.21478859,0.00019849,2]
[387804542,1758883832455,-5114.52464046,0.00019849,2]
[387804543,1758883832464,-1567.58007209,0.00019859,2]
[387804544,1758883832474,-168.0,0.00019859,2]
[387804545,1758883832483,-1093.35194235,0.00019865,2]
[387804546,1758883832492,-5090.21478859,0.00019875,2]
[387804547,1758883832502,-1567.58007209,0.00019879,2]
[387804548,1758883832511,-5090.21478859,0.00019885,2]
[387804549,1758883832520,-492.06155714,0.00019896,2]
[387804550,1758883832530,-500.0,0.00019899,2]
[387804551,1758883832539,-334.71516,0.000199,2]
[387804552,1758883832549,-492.06155714,0.000199,2]
[387804553,1758883832558,-1093.35194235,0.00019902,2]
[387804554,1758883832568,-492.06155714,0.00019908,2]
[387804555,1758883832577,-1093.35194235,0.00019908,2]
[387804556,1758883832587,-1567.58007209,0.0001991,2]
[387804557,1758883832596,-3396.0,0.00019911,2]
[387804558,1758883832606,-787.0,0.00019911,2]
[387804559,1758883832615,-2043.0,0.00019911,2]
[387804560,1758883832625,-569.0,0.00019911,2]
[387804561,1758883832634,-1583.0,0.00019911,2]
[387804562,1758883832643,-1305.0,0.00019911,2]
[387804563,1758883832656,-603.0,0.00019911,2]
[387804564,1758883832665,-4232.0,0.00019911,2]
[387804565,1758883832674,-899.0,0.00019911,2]
[387804566,1758883832683,-1179.0,0.00019911,2]
[387804567,1758883832693,-814.0,0.00019911,2]
[387804568,1758883832702,-4179.0,0.00019911,2]
[387804569,1758883832712,-6228.0,0.00019911,2]
[387804570,1758883832721,-728.0,0.00019911,2]
[387804571,1758883832732,-5114.52464046,0.00019912,2]
[387804572,1758883832742,-2917.57861602,0.00019913,2]
[387804573,1758883832754,-335.26580545,0.00019913,2]
[387804574,1758883832855,-1861.68021899,0.00019913,2]
[387804575,1758883832864,-1938.557,0.00019919,2]
[387804576,1758883832874,-197.691,0.00019919,2]
[387804577,1758883832883,-1567.58007209,0.00019921,2]
[387804578,1758883832892,-4023.8881429,0.00019923,2]
[387804579,1758883832905,-1090.63649756,0.00019923,2]
[387804580,1758883832914,-492.06155714,0.00019925,2]
[387804582,1758883832924,-5090.21478859,0.00019926,2]
[387804584,1758883832934,-3317.08802094,0.00019931,2]
[387804739,1758883839583,-695.2374862,0.00019911,2]
[387804937,1758883841535,-18209.7625138,0.00019911,2]
[387804939,1758883841545,-1797.43661952,0.00019931,2]
[387804941,1758883841555,-492.06155714,0.00019931,2]
[387804943,1758883841564,-1093.35194235,0.00019933,2]
[387804945,1758883841573,-168.0,0.00019936,2]
[387804947,1758883841582,-5090.21478859,0.00019954,2]
[387804949,1758883841592,-5114.52464046,0.00019962,2]
[387804951,1758883841601,-1567.58007209,0.0001997,2]
[387804953,1758883841610,-500.0,0.00019973,2]
[387804955,1758883841620,-500.0,0.00019973,2]
[387804957,1758883841629,-500.0,0.00019973,2]
[387804960,1758883841638,-500.0,0.00019973,2]
[387804962,1758883841648,-500.0,0.00019973,2]
[387804964,1758883841661,-506.80793122,0.00019973,2]
[387804966,1758883841670,-151.0,0.00019981,2]
[387804968,1758883841680,-151.0,0.00019981,2]
[387804970,1758883841689,-151.0,0.00019981,2]
[387804972,1758883841699,-151.0,0.00019981,2]
[387804974,1758883841708,-151.0,0.00019981,2]
[387804976,1758883841717,-151.94484707,0.00019981,2]
[387804978,1758883841726,-1093.35194235,0.00019986,2]
[387804980,1758883841736,-5114.52464046,0.00019988,2]
[387804982,1758883841746,-1093.35194235,0.00019994,2]
[387804984,1758883841755,-5090.21478859,0.00019995,2]
[387804986,1758883841766,-5090.21478859,0.00019996,2]
[387804988,1758883841775,-155.0,0.00019999,2]
[387804990,1758883841784,-150.0,0.00019999,2]
[387804992,1758883841793,-150.0,0.00019999,2]
[387804994,1758883841803,-558.0,0.00019999,2]
[387804996,1758883841813,-150.0,0.00019999,2]
[387804998,1758883841823,-1860.71195992,0.00019999,2]
[387805006,1758883841895,-734.28804008,0.00019999,2]
[387805008,1758883841904,-150.0,0.00019999,2]
[387805010,1758883841914,-1963.0,0.00019999,2]
[387805012,1758883841923,-500.0,0.00019999,2]
[387805014,1758883841932,-150.0,0.00019999,2]
[387805016,1758883841942,-237.01275339,0.00019999,2]
[387805018,1758883841952,-500.0,0.00019999,2]
[387805021,1758883841961,-500.0,0.00019999,2]
[387805023,1758883841971,-500.0,0.00019999,2]
[387805025,1758883841981,-407.09284927,0.00019999,2]
[387805026,1758883841990,-150.0,0.00019999,2]
[387805027,1758883841999,-150.0,0.00019999,2]
[387805028,1758883842010,-152.08018652,0.00019999,2]
[387805029,1758883842019,-571.0,0.00019999,2]
[387805039,1758883842028,-500.0,0.00019999,2]
[387805043,1758883842255,-500.0,0.00019999,2]
[387805045,1758883842264,-150.0,0.00019999,2]
[387805047,1758883842274,-500.0,0.00019999,2]
[387805048,1758883842283,-150.0,0.00019999,2]
[387805050,1758883842292,-2429.77,0.00019999,2]
[387805052,1758883842302,-282.22839502,0.00019999,2]
[387805054,1758883842311,-1093.35194235,0.0002,2]
[387805056,1758883842321,-105428.06251086,0.0002,2]
[387805058,1758883842330,-525.39883865,0.0002,2]
[387805061,1758883842339,-489.1906412,0.0002,10]
[387805063,1758883842349,-2292.28496558,0.0002,2]
[387805065,1758883842358,-500.0,0.0002,2]
[387805066,1758883842367,-501.39363528,0.0002,2]
[387805069,1758883842376,-150.0,0.0002,2]
[387805071,1758883842386,-3074.7001471,0.0002,2]
[387805073,1758883842395,-2904.18578116,0.0002,2]
[387805074,1758883842404,-150.0,0.0002,2]
[387805076,1758883842414,-589.4960622,0.0002,2]
[387805079,1758883842424,-150.0,0.0002,2]
[387805081,1758883842434,-2608.90622392,0.0002,2]
[387805083,1758883842443,-406.71748417,0.0002,2]
[387805085,1758883842452,-151.0,0.0002,2]
[387805087,1758883842461,-150.0,0.0002,2]
[387805089,1758883842474,-150.36120915,0.0002,2]
[387805091,1758883842483,-150.0,0.0002,2]
[387805093,1758883842493,-150.0,0.0002,2]
[387805095,1758883842502,-500.0,0.0002,2]
[387805097,1758883842512,-150.0,0.0002,2]
[387805099,1758883842521,-150.0,0.0002,2]
[387805101,1758883842532,-150.0,0.0002,2]
[387805103,1758883842541,-500.0,0.0002,2]
[387805105,1758883842550,-150.0,0.0002,2]
[387805107,1758883842560,-150.0,0.0002,2]
[387805109,1758883842570,-500.0,0.0002,2]
[387805111,1758883842579,-1000.0,0.0002,2]
[387805113,1758883842589,-1000.0,0.0002,2]
[387805115,1758883842598,-1000.0,0.0002,2]
[387805117,1758883842608,-1000.0,0.0002,2]
[387805121,1758883842619,-1000.0,0.0002,2]
[387805124,1758883842629,-1000.0,0.0002,2]
[387805126,1758883842638,-1000.0,0.0002,2]
[387805129,1758883842647,-1000.0,0.0002,2]
[387805132,1758883842662,-1000.0,0.0002,2]
[387805135,1758883842672,-1000.0,0.0002,2]
[387805138,1758883842681,-1000.0,0.0002,2]
[387805141,1758883842691,-1000.0,0.0002,2]
[387805143,1758883842701,-1000.0,0.0002,2]
[387805145,1758883842711,-1000.0,0.0002,2]
[387805147,1758883842720,-1000.0,0.0002,2]
[387805149,1758883842729,-1000.0,0.0002,2]
[387805151,1758883842739,-1000.0,0.0002,2]
[387805153,1758883842748,-1000.0,0.0002,2]
[387805155,1758883842758,-1000.0,0.0002,2]
[387805157,1758883842768,-927.89499032,0.0002,2]
[387805159,1758883842777,-256.71996309,0.0002,2]
[387805161,1758883842788,-17323.88983339,0.0002,2]
[387805163,1758883842798,-500.0,0.0002,2]
[387805165,1758883842807,-200.0,0.0002,2]
[387805167,1758883842817,-3067.0,0.0002,2]
[387805169,1758883842827,-150.85,0.0002,2]
[387805171,1758883842837,-150.04,0.0002,2]
[387805173,1758883842846,-535.14,0.0002,2]
[387805175,1758883842855,-151.58,0.0002,2]
[387805177,1758883842864,-580.78086259,0.00020009,2]
[387805179,1758883842874,-5000.0,0.00020024,2]
[387805181,1758883842883,-5000.0,0.0002004,2]
[387805183,1758883842893,-168.0,0.00020042,2]
[387805185,1758883842903,-5008.46,0.00020054,2]
[387805187,1758883842913,-25000.0,0.00020073,2]
[387805190,1758883842923,-150.0,0.0002008,2]
[387805192,1758883842932,-5000.0,0.00020131,2]
[387805194,1758883842942,-2474.93,0.00020145,2]
[387805196,1758883842952,-334.71516,0.0002015,2]
[387805198,1758883842961,-9335.52,0.00020158,2]
[387805200,1758883842971,-511.48863841,0.00020171,2]
[387805202,1758883842981,-5000.0,0.00020173,2]
[387805204,1758883842990,-2290.56,0.00020184,2]
[387805206,1758883843000,-785.0,0.000202,2]
[387805208,1758883843009,-243.0,0.000202,2]
[387805210,1758883843019,-384.0,0.000202,2]
[387805212,1758883843028,-319.82540307,0.00020233,2]
[387805214,1758883843038,-849.0,0.00020234,2]
[387805216,1758883843047,-168.0,0.00020248,2]
[387805218,1758883843058,-150.0,0.00020273,2]
[387805220,1758883843067,-150.0,0.00020273,2]
[387805222,1758883843077,-558.0,0.00020273,2]
[387805224,1758883843086,-150.0,0.00020273,2]
[387805226,1758883843096,-2595.0,0.00020273,2]
[387805228,1758883843106,-150.0,0.00020273,2]
[387805230,1758883843115,-1963.0,0.00020273,2]
[387805232,1758883843125,-500.0,0.00020273,2]
[387805234,1758883843135,-150.0,0.00020273,2]
[387805236,1758883843144,-500.0,0.00020273,2]
[387805238,1758883843154,-500.0,0.00020273,2]
[387805240,1758883843165,-150.0,0.00020273,2]
[387805242,1758883843174,-571.0,0.00020273,2]
[387805244,1758883843183,-500.0,0.00020273,2]
[387805246,1758883843193,-500.0,0.00020273,2]
[387805248,1758883843202,-500.0,0.00020273,2]
[387805250,1758883843212,-150.0,0.00020274,2]
[387805252,1758883843222,-150.0,0.00020274,2]
[387805254,1758883843231,-150.0,0.00020274,2]
[387805256,1758883843242,-598.32564501,0.00020274,2]
[387805258,1758883843251,-150.0,0.00020274,2]
[387805260,1758883843261,-150.0,0.00020274,2]
[387805262,1758883843270,-150.88329655,0.00020274,2]
[387805264,1758883843280,-500.0,0.00020274,2]
[387805266,1758883843290,-500.0,0.00020274,2]
[387805268,1758883843299,-2501.58,0.00020288,2]
[387805270,1758883843308,-2708.94,0.000203,2]
[387805272,1758883843318,-174.00075261,0.00020341,2]
[387805274,1758883843328,-262.73,0.00020355,2]
[387805276,1758883843337,-326.31,0.00020382,2]
[387805278,1758883843346,-5000.0,0.00020386,2]
[387805280,1758883843355,-334.71516,0.000204,2]
[387805282,1758883843364,-168.0,0.00020498,2]
[387805284,1758883843374,-334.5472959,0.00020499,2]
[387805286,1758883843383,-157.91,0.00020507,2]
[387805288,1758883843393,-150.0,0.00020507,2]
[387805290,1758883843403,-2500.0,0.00020507,2]
[387805293,1758883843414,-195.0,0.00020507,2]
[387805295,1758883843423,-250.0,0.00020507,2]
[387805296,1758883843433,-2500.0,0.00020507,2]
[387805298,1758883843442,-168.0,0.00020517,2]
[387805301,1758883843455,-2501.58,0.00020517,2]
[387805303,1758883843465,-1000.0,0.00020521,2]
[387805304,1758883843473,-607.21974266,0.00020521,2]
[387805307,1758883843483,-1000.0,0.00020521,2]
[387805309,1758883843492,-1000.0,0.00020521,2]
[387805311,1758883843503,-389.59382935,0.00020544,2]
[387805313,1758883843512,-150.0,0.00020547,2]
[387805315,1758883843522,-150.0,0.00020547,2]
[387805317,1758883843531,-558.0,0.00020547,2]
[387805319,1758883843541,-150.0,0.00020547,2]
[387805321,1758883843550,-2595.0,0.00020547,2]
[387805323,1758883843559,-268.52316321,0.00020547,2]
[387805325,1758883843569,-1963.0,0.00020547,2]
[387805327,1758883843578,-500.0,0.00020547,2]
[387805329,1758883843588,-174.94924949,0.00020547,2]
[387805331,1758883843598,-500.0,0.00020547,2]
[387805333,1758883843607,-500.0,0.00020547,2]
[387805335,1758883843617,-571.0,0.00020547,2]
[387805337,1758883843626,-186.44714644,0.00020547,2]
[387805339,1758883843635,-500.0,0.00020547,2]
[387805341,1758883843646,-500.0,0.00020547,2]
[387805343,1758883843657,-378.89,0.00020547,2]
[387805345,1758883843668,-150.0,0.00020548,2]
[387805347,1758883843677,-150.0,0.00020548,2]
[387805349,1758883843687,-200.0,0.00020548,2]
[387805351,1758883843697,-150.0,0.00020548,2]
[387805353,1758883843706,-500.0,0.00020548,2]
[387805355,1758883843715,-154.41685611,0.00020548,2]
[387805357,1758883843724,-319.82540307,0.00020567,2]
[387805359,1758883843734,-168.0,0.00020579,2]
[387805361,1758883843743,-2000.0,0.00020625,2]
[387805363,1758883843753,-303.03383145,0.00020643,2]
[387805365,1758883843762,-195.0,0.00020643,2]
[387805367,1758883843771,-500.0,0.00020643,2]
[387805369,1758883843781,-500.0,0.00020643,2]
[387805371,1758883843790,-500.0,0.00020643,2]
[387805373,1758883843799,-592.66377895,0.00020643,2]
[387805375,1758883843809,-300.0,0.00020643,2]
[387805377,1758883843819,-250.0,0.00020643,2]
[387805379,1758883843828,-300.0,0.00020643,2]
[387805381,1758883843837,-300.0,0.00020643,2]
[387805383,1758883843846,-334.71517,0.0002065,2]
[387805385,1758883843856,-2615.39,0.00020712,2]
[387805387,1758883843866,-1680.0,0.00020722,2]
[387805389,1758883843876,-5000.0,0.00020782,2]
[387805391,1758883843886,-150.0,0.00020821,2]
[387805393,1758883843895,-150.0,0.00020821,2]
[387805395,1758883843905,-558.0,0.00020821,2]
[387805397,1758883843915,-150.0,0.00020821,2]
[387805398,1758883843924,-2595.0,0.00020821,2]
[387805399,1758883843933,-1963.0,0.00020821,2]
[387805400,1758883843943,-350.0,0.00020821,2]
[387805401,1758883843952,-500.0,0.00020821,2]
[387805402,1758883843961,-500.0,0.00020821,2]
[387805403,1758883843971,-571.0,0.00020821,2]
[387805404,1758883843980,-500.0,0.00020821,2]
[387805405,1758883843990,-500.0,0.00020821,2]
[387805406,1758883843999,-150.0,0.00020822,2]
[387805407,1758883844009,-150.0,0.00020822,2]
[387805409,1758883844019,-200.0,0.00020822,2]
[387805411,1758883844029,-316.00900011,0.00020822,2]
[387805412,1758883844039,-319.82540307,0.000209,2]
[387805413,1758883844048,-334.71516,0.000209,2]
[387805414,1758883844057,-285.07,0.00020909,2]
[387805415,1758883844067,-5000.0,0.00020925,2]
[387805416,1758883844076,-823.88,0.00020939,2]
[387805417,1758883844085,-150.36,0.00020971,2]
[387805418,1758883844095,-1000.0,0.00020986,2]
[387805419,1758883844105,-40296.0,0.00021,7]
[387805420,1758883844114,-5023.6931635,0.00021,2]
[387805421,1758883844124,-4659.12466102,0.00021,2]
[387805422,1758883844133,-13215.09076464,0.00021,2]
[387805423,1758883844143,-516.91207795,0.00021,7]
[387805424,1758883844153,-389.59382935,0.00021006,2]
[387805425,1758883844164,-1500.0,0.00021068,2]
[387805426,1758883844174,-1500.0,0.00021068,2]
[387805427,1758883844184,-1500.0,0.00021068,2]
[387805428,1758883844194,-150.0,0.00021082,2]
[387805430,1758883844203,-150.0,0.00021082,2]
[387805432,1758883844213,-150.0,0.00021082,2]
[387805434,1758883844222,-222.77289877,0.00021082,2]
[387805435,1758883844232,-150.00000001,0.00021082,2]
[387805437,1758883844242,-150.0,0.00021082,2]
[387805439,1758883844251,-255.36740143,0.00021082,2]
[387805440,1758883844261,-150.0,0.00021082,2]
[387805441,1758883844270,-155.2242336,0.00021095,2]
[387805442,1758883844280,-209.34599363,0.00021095,2]
[387805443,1758883844290,-558.0,0.00021095,2]
[387805444,1758883844299,-250.0,0.00021095,2]
[387805445,1758883844309,-2595.0,0.00021095,2]
[387805446,1758883844319,-1963.0,0.00021095,2]
[387805447,1758883844328,-500.0,0.00021095,2]
[387805448,1758883844337,-500.0,0.00021095,2]
[387805449,1758883844347,-571.0,0.00021095,2]
[387805450,1758883844356,-500.0,0.00021095,2]
[387805451,1758883844366,-500.0,0.00021095,2]
[387805452,1758883844375,-378.89,0.00021095,2]
[387805453,1758883844384,-150.0,0.00021096,2]
[387805454,1758883844393,-257.66872475,0.00021096,2]
[387805455,1758883844403,-6181.52899787,0.000212,2]
[387805456,1758883844414,-319.82540307,0.00021233,2]
[387805457,1758883844424,-2518.34,0.00021262,4]
[387805458,1758883844434,-150.0,0.0002127,2]
[387805459,1758883844443,-300.25,0.00021278,4]
[387805460,1758883844610,-558.0,0.00021369,2]
[387805461,1758883844619,-2595.0,0.00021369,2]
[387805462,1758883844629,-1963.0,0.00021369,2]
[387805463,1758883844639,-500.0,0.00021369,2]
[387805464,1758883844648,-500.0,0.00021369,2]
[387805465,1758883844659,-571.0,0.00021369,2]
[387805466,1758883844669,-500.0,0.00021369,2]
[387805467,1758883844679,-204.4145009,0.0002137,2]
[387805468,1758883844688,-1350.15479602,0.00021375,7]
[387805469,1758883844698,-2518.36,0.00021435,4]
[387805470,1758883844707,-389.59382935,0.00021468,2]
[387805471,1758883844716,-19627.87,0.000215,2]
[387805472,1758883844725,-19627.87,0.000215,2]
[387805473,1758883844735,-271.26,0.000215,2]
[387805474,1758883844744,-4016.02,0.000215,2]
[387805475,1758883844753,-4016.02,0.000215,2]
[387805476,1758883844762,-516.91207795,0.00021562,2]
[387805477,1758883844772,-319.82540307,0.00021567,2]
[387805478,1758883844781,-2000.0,0.00021616,2]
[387805479,1758883844790,-2000.0,0.00021616,2]
[387805480,1758883844799,-2000.0,0.00021616,2]
[387805481,1758883844808,-558.0,0.00021643,2]
[387805482,1758883844818,-2595.0,0.00021643,2]
[387805483,1758883844827,-1963.0,0.00021643,2]
[387805484,1758883844836,-500.0,0.00021643,2]
[387805485,1758883844845,-216.66776366,0.00021643,2]
[387805486,1758883844856,-571.0,0.00021643,2]
[387805487,1758883844865,-500.0,0.00021643,2]
[387805488,1758883844875,-378.89,0.00021643,2]
[387805489,1758883844884,-540.9258746,0.00021644,2]
[387805490,1758883844893,-182.04,0.00021688,2]
[387805491,1758883844904,-1656.0,0.000217,2]
[387805492,1758883844914,-19627.87,0.000217,2]
[387805493,1758883844924,-4016.02,0.000217,2]
[387805494,1758883844933,-217.15233878,0.00021711,2]
[387805495,1758883844942,-165.08,0.00021723,4]
[387805496,1758883844951,-1000.0,0.00021773,2]
[387805497,1758883844961,-5000.0,0.00021818,4]
[387805498,1758883844970,-2292.28496558,0.00021818,2]
[387805499,1758883844979,-346.92554585,0.00021868,2]
[387805500,1758883844989,-6079.66297457,0.000219,2]
[387805501,1758883844998,-319.82540307,0.000219,2]
[387805502,1758883845008,-481.09185937,0.000219,2]
[387805503,1758883845017,-152.77,0.00021906,4]
[387805504,1758883845026,-558.0,0.00021917,2]
[387805505,1758883845035,-2595.0,0.00021917,2]
[387805506,1758883845045,-1963.0,0.00021917,2]
[387805507,1758883845054,-500.0,0.00021917,2]
[387805508,1758883845063,-571.0,0.00021917,2]
[387805509,1758883845072,-500.0,0.00021917,2]
[387805510,1758883845082,-155.93,0.00021917,4]
[387805511,1758883845092,-5000.0,0.00021918,2]
[387805512,1758883845101,-160.0,0.00021918,2]
[387805513,1758883845110,-155.0,0.00021918,2]
[387805514,1758883845120,-160.0,0.00021918,2]
[387805515,1758883845129,-155.0,0.00021918,2]
[387805516,1758883845138,-160.0,0.00021918,2]
[387805517,1758883845148,-155.0,0.00021918,2]
[387805518,1758883845157,-155.0,0.00021918,2]
[387805519,1758883845166,-160.0,0.00021918,2]
[387805520,1758883845176,-160.0,0.00021918,2]
[387805521,1758883845185,-155.0,0.00021918,2]
[387805522,1758883845194,-155.0,0.00021918,2]
[387805523,1758883845203,-155.0,0.00021918,2]
[387805524,1758883845213,-155.0,0.00021918,2]
[387805525,1758883845222,-160.0,0.00021918,2]
[387805526,1758883845231,-155.0,0.00021918,2]
[387805527,1758883845241,-163.37566965,0.00021918,2]
[387805528,1758883845251,-155.0,0.00021918,2]
[387805529,1758883845260,-155.0,0.00021918,2]
[387805530,1758883845269,-160.0,0.00021918,2]
[387805531,1758883845278,-155.0,0.00021918,2]
[387805532,1758883845288,-155.0,0.00021918,2]
[387805533,1758883845297,-155.0,0.00021918,2]
[387805534,1758883845306,-155.0,0.00021918,2]
[387805535,1758883845315,-155.0,0.00021918,2]
[387805536,1758883845324,-155.0,0.00021918,2]
[387805537,1758883845333,-155.0,0.00021918,2]
[387805538,1758883845343,-155.0,0.00021918,2]
[387805539,1758883845352,-155.0,0.00021918,2]
[387805540,1758883845361,-155.0,0.00021918,2]
[387805541,1758883845371,-155.0,0.00021918,2]
[387805542,1758883845379,-155.0,0.00021918,2]
[387805543,1758883845389,-180.94975088,0.00021918,2]
[387805544,1758883845398,-155.0,0.00021918,2]
[387805545,1758883845407,-155.0,0.00021918,2]
[387805546,1758883845417,-155.0,0.00021918,2]
[387805547,1758883845427,-200.0,0.00021918,2]
[387805548,1758883845437,-150.0,0.00021918,2]
[387805549,1758883845447,-523.29447097,0.00021918,2]
[387805550,1758883845456,-389.59382935,0.00021929,2]
[387805551,1758883845465,-500.0,0.00021973,2]
[387805552,1758883845474,-500.0,0.00021973,2]
[387805553,1758883845484,-165.10918674,0.00021973,2]
[387805554,1758883845494,-500.0,0.00021973,2]
[387805555,1758883845503,-500.0,0.00021973,2]
[387805556,1758883845512,-287.19008035,0.00021973,2]
[387805557,1758883845521,-500.0,0.00021973,2]
[387805558,1758883845530,-500.0,0.00021973,2]
[387805559,1758883845540,-500.0,0.00021973,2]
[387805560,1758883845549,-167.77375629,0.00021973,2]
[387805561,1758883845558,-500.0,0.00021973,2]
[387805562,1758883845567,-500.0,0.00021973,2]
[387805563,1758883845577,-500.0,0.00021973,2]
[387805564,1758883845586,-500.0,0.00021973,2]
[387805565,1758883845595,-500.0,0.00021973,2]
[387805566,1758883845605,-500.0,0.00021973,2]
[387805567,1758883845614,-500.0,0.00021973,2]
[387805568,1758883845623,-156.95469777,0.00021973,2]
[387805569,1758883845637,-323.89084799,0.00021973,2]
[387805570,1758883845660,-500.0,0.00021973,2]
[387805571,1758883845677,-500.0,0.00021973,2]
[387805573,1758883845696,-500.0,0.00021973,2]
[387805574,1758883845713,-166.12126537,0.00021973,2]
[387805575,1758883845731,-500.0,0.00021973,2]
[387805577,1758883845750,-150.0,0.00021973,2]
[387805578,1758883845768,-571.56636197,0.00021973,2]
[387805579,1758883845786,-500.0,0.00021973,2]
[387805580,1758883845803,-500.0,0.00021973,2]
[387805581,1758883845821,-1000.0,0.00021999,2]
[387805582,1758883845839,-517.59731802,0.00021999,2]
[387805583,1758883845852,-666.0,0.00021999,2]
[387805584,1758883845872,-1724.78,0.00021999,2]
[387805585,1758883845883,-1724.78,0.00021999,2]
[387805586,1758883845901,-1724.78,0.00021999,2]
[387805587,1758883845918,-1724.78,0.00021999,2]
[387805588,1758883845932,-1724.78,0.00021999,2]
[387805589,1758883845946,-1724.78,0.00021999,2]
[387805590,1758883845963,-1724.78,0.00021999,2]
[387805591,1758883845977,-1724.78,0.00021999,2]
[387805592,1758883845998,-1724.78,0.00021999,2]
[387805593,1758883846012,-1724.78,0.00021999,2]
[387805594,1758883846027,-1724.78,0.00021999,2]
[387805595,1758883846042,-1724.78,0.00021999,2]
[387805596,1758883846057,-1724.78,0.00021999,2]
[387805597,1758883846072,-1724.78,0.00021999,2]
[387805598,1758883846086,-1724.78,0.00021999,2]
[387805599,1758883846101,-1724.78,0.00021999,2]
[387805600,1758883846116,-1724.78,0.00021999,2]
[387805601,1758883846131,-1724.78,0.00021999,2]
[387805602,1758883846146,-1724.78,0.00021999,2]
[387805603,1758883846161,-1724.78,0.00021999,2]
[387805604,1758883846176,-1724.78,0.00021999,2]
[387805605,1758883846191,-1724.78,0.00021999,2]
[387805606,1758883846206,-1724.78,0.00021999,2]
[387805607,1758883846221,-1724.89,0.00021999,2]
[387805608,1758883846235,-300.0,0.00021999,2]
[387805609,1758883846250,-300.0,0.00021999,2]
[387805610,1758883846265,-1000.0,0.00021999,2]
[387805611,1758883846281,-695642.94655258,0.00022,2]
[387805614,1758883846541,-1173.3515001,0.00020273,2]
[387805615,1758883846615,-1256.4184999,0.00020273,2]
[387805616,1758883846630,-293.5815001,0.00022,2]